bitfinex-derivatives/quotes_SOLF0:USTF0_20250901
["timestamp","ask_amount","ask_price","bid_price","bid_amount"]
[1756713249410,14.86,202.27,201.99,3.64242235]
[1756713249612,3.64242235,202.21,201.99,3.64242235]
[1756713249906,3.64242235,202.21,202.0,3.64242235]
[1756713250613,3.64242235,202.21,201.95,60.6]
[1756713250815,3.64242235,202.17,201.98,3.64242235]
[1756713251116,2.16,202.16,201.98,3.64242235]
[1756713252508,3.64242235,202.2,201.98,3.64242235]
[1756713252712,1.5,202.19,201.98,3.64242235]
[1756713252921,3.64242235,202.23,202.02,3.64242235]
[1756713253214,133.68,202.22,201.95,62.0]
[1756713253419,3.64242235,202.26,202.03,3.64242235]
[1756713253712,332.68,202.28,202.07,3.64242235]
[1756713254015,332.68,202.28,201.95,66.02266259]
[1756713254016,332.68,202.28,202.15,3.64242235]
[1756713254418,332.68,202.28,202.13,3.64242235]
[1756713255619,332.68,202.28,202.09,3.64242235]
[1756713255814,332.68,202.28,202.07,3.64242235]
[1756713256014,3.64242235,202.25,202.07,3.64242235]
[1756713256212,332.68,202.28,202.07,3.64242235]
[1756713256412,116.3,202.27,202.11,3.64242235]
[1756713256820,332.68,202.28,202.15,3.64242235]
[1756713257120,134.3,202.27,202.15,3.64242235]
[1756713257417,134.3,202.27,202.12,3.64242235]
[1756713257917,467.14,202.28,202.12,3.64242235]
[1756713258318,332.68,202.28,202.16,3.64242235]
[1756713258826,135.34,202.32,202.19,3.64242235]
[1756713259217,332.58,202.4,202.19,3.64242235]
[1756713259416,135.4,202.39,202.19,3.64242235]
[1756713259613,135.7,202.38,202.19,3.64242235]
[1756713259814,332.58,202.4,202.19,3.64242235]
[1756713260014,336.22242235,202.4,202.19,3.64242235]
[1756713260219,135.72,202.39,202.19,3.64242235]
[1756713260618,135.72,202.39,202.08,62.0]
[1756713260824,3.64242235,202.37,202.18,3.64242235]
[1756713261025,3.64242235,202.37,202.15,3.64242235]
[1756713261423,3.64242235,202.33,202.11,3.64242235]
[1756713261622,136.5,202.32,202.11,3.64242235]
[1756713262715,347.44,202.4,202.07,6.06]
[1756713262716,86.4,202.31,202.15,3.64242235]
[1756713262916,86.4,202.3,202.15,3.64242235]
[1756713263322,83.1,202.32,202.15,3.64242235]
[1756713263717,83.1,202.32,202.15,8.09412235]
[1756713264027,83.1,202.32,202.19,3.64242235]
[1756713266026,83.1,202.32,202.08,62.0]
[1756713266027,83.1,202.32,202.18,3.64242235]
[1756713267620,83.1,202.32,202.14,3.64242235]
[1756713268624,83.1,202.32,202.11,3.64242235]
[1756713268625,3.64242235,202.3,202.11,3.64242235]
[1756713268826,3.64242235,202.3,202.05,2.22]
[1756713269124,3.64242235,202.26,202.06,3.64242235]
[1756713269331,83.1,202.32,202.06,3.64242235]
[1756713269530,3.64242235,202.28,202.06,3.64242235]
[1756713270022,3.64242235,202.24,202.04,3.64242235]
[1756713270228,52.98,202.23,202.04,3.64242235]
[1756713270422,3.64242235,202.35,202.07,4.4533]
[1756713270727,347.43,202.4,202.03,332.64]
[1756713270728,3.64242235,202.28,202.08,3.64242235]
[1756713271027,2.22,202.27,202.09,4.4529]
[1756713271428,3.64242235,202.32,202.12,3.64242235]
[1756713271624,1.72,202.31,202.12,3.64242235]
[1756713271930,2.22,202.31,202.12,3.64242235]
[1756713272124,2.22,202.31,202.16,3.64242235]
[1756713272630,2.22,202.31,202.14,3.64242235]
[1756713273929,2.22,202.31,202.09,4.453]
[1756713274130,2.22,202.31,202.08,5.73490888]
[1756713274335,5.73490888,202.29,202.08,5.73490888]
[1756713274730,2.22,202.31,202.08,5.73490888]
[1756713274934,2.22,202.31,202.08,10.18800888]
[1756713275132,2.22,202.31,202.08,5.73490888]
[1756713275532,5.73490888,202.32,202.08,5.73490888]
[1756713275738,332.58,202.4,202.08,5.73490888]
[1756713275739,13.84,202.31,202.08,5.73490888]
[1756713275932,8.4,202.31,202.08,5.73490888]
[1756713277132,8.4,202.31,202.09,135.08]
[1756713277330,8.4,202.31,202.08,5.73490888]
[1756713277529,8.4,202.31,202.08,126.97490888]
[1756713278034,8.4,202.31,202.08,5.73490888]
[1756713278232,8.4,202.31,202.08,140.85490888]
[1756713278534,23.26,202.31,202.03,338.37490888]
[1756713278736,5.73490888,202.27,202.04,134.98]
[1756713279241,17.54,202.27,202.05,134.98]
[1756713279542,17.54,202.27,202.08,5.73490888]
[1756713279937,20.59490888,202.35,202.1,4.4526]
[1756713280137,18.54,202.34,202.1,4.4526]
[1756713280436,39.13490888,202.34,202.08,5.73490888]
[1756713281933,39.13490888,202.34,202.08,128.45490888]
[1756713282438,39.13490888,202.34,202.08,5.73490888]
[1756713282640,5.73490888,202.29,202.04,3.46]
[1756713282836,5.73490888,202.29,202.06,4.4535]
[1756713283038,5.73490888,202.29,202.04,3.46]
[1756713283242,332.44,202.29,202.04,3.46]
[1756713283543,3.46,202.28,202.04,3.46]
[1756713283739,3.46,202.28,202.04,134.78]
[1756713284242,134.78,202.27,202.04,134.78]
[1756713284943,134.78,202.27,202.03,338.37490888]
[1756713285135,134.78,202.27,202.05,4.4536]
[1756713285942,134.62,202.26,202.06,4.4534]
[1756713286139,134.62,202.26,202.04,134.74]
[1756713286140,332.44,202.29,202.08,5.73490888]
[1756713286346,134.58,202.28,202.08,5.73490888]
[1756713287138,332.44,202.29,202.08,5.73490888]
[1756713287345,466.96,202.29,202.08,5.73490888]
[1756713287844,332.44,202.29,202.08,9.71819102]
[1756713288541,332.44,202.29,202.11,4.4523]
[1756713288839,332.44,202.29,202.12,134.48]
[1756713289439,332.44,202.29,202.13,5.73490888]
[1756713290246,332.44,202.29,202.1,48.48]
[1756713290442,332.44,202.29,202.09,134.48]
[1756713291342,134.48,202.28,202.1,4.4526]
[1756713291646,134.48,202.28,202.09,134.48]
[1756713291845,134.48,202.28,202.08,4.453]
[1756713292047,134.48,202.28,202.09,134.48]
[1756713292549,134.42,202.27,202.09,138.9327]
[1756713292747,332.44,202.29,202.09,134.48]
[1756713292947,126.66,202.28,202.09,134.48]
[1756713293150,126.66,202.28,202.1,4.4525]
[1756713293647,123.84,202.27,202.1,4.4525]
[1756713293843,332.44,202.29,202.1,4.4525]
[1756713293844,134.3,202.26,202.11,4.28737831]
[1756713294048,134.3,202.26,202.12,7.91981937]
[1756713294249,134.3,202.26,202.13,4.28737831]
[1756713294449,134.28,202.26,202.14,4.28737831]
[1756713294650,332.44,202.29,202.15,4.28737831]
[1756713294847,134.22,202.28,202.16,4.28737831]
[1756713295042,332.44,202.29,202.17,4.28737831]
[1756713295242,332.44,202.29,202.18,4.28737831]
[1756713295442,332.44,202.29,202.19,4.28737831]
[1756713295650,332.44,202.29,202.2,4.28737831]
[1756713295949,332.44,202.29,202.21,4.28737831]
[1756713296144,332.44,202.29,202.22,4.28737831]
[1756713296339,332.44,202.29,202.23,4.28737831]
[1756713296541,332.44,202.29,202.24,4.28737831]
[1756713296950,332.44,202.29,202.25,4.28077878]
[1756713297152,332.44,202.29,202.26,4.28077878]
[1756713297349,332.44,202.29,202.27,4.28077878]
[1756713297551,134.18,202.3,202.28,4.28077878]
[1756713297751,134.18,202.3,202.11,9.03244106]
[1756713297752,134.18,202.3,202.29,4.28077878]
[1756713297952,134.18,202.3,202.11,13.48474106]
[1756713298348,134.18,202.3,202.11,8.08474106]
[1756713298659,134.18,202.3,202.11,3.63244106]
[1756713300251,3.63244106,202.27,202.05,7.6157232]
[1756713300450,3.63244106,202.23,202.05,3.63244106]
[1756713300653,90.7,202.22,202.05,3.63244106]
[1756713301046,61.78,202.23,202.09,3.63244106]
[1756713301250,61.78,202.22,202.09,3.63244106]
[1756713301448,61.78,202.22,202.08,4.4531]
[1756713301648,59.58,202.23,202.07,3.63244106]
[1756713301850,57.48,202.23,202.07,3.63244106]
[1756713302055,57.48,202.23,202.07,7.6157232]
[1756713302256,3.63244106,202.31,202.11,3.63244106]
[1756713302552,3.63244106,202.33,202.11,3.63244106]
[1756713302752,133.84,202.32,202.11,12.1557232]
[1756713302955,133.84,202.32,202.1,3.98328214]
[1756713303161,3.63244106,202.29,202.1,62.0]
[1756713303355,3.63244106,202.29,202.09,3.63244106]
[1756713304664,3.63244106,202.25,202.07,3.98328214]
[1756713304861,36.9,202.24,202.05,3.98328214]
[1756713305059,36.9,202.24,202.04,119.53244106]
[1756713305364,36.9,202.24,202.04,123.98634106]
[1756713305665,36.9,202.24,202.04,119.53244106]
[1756713305866,24.14,202.24,202.08,3.63244106]
[1756713306162,24.14,202.24,202.09,4.4527]
[1756713306362,332.42,202.35,202.16,3.63244106]
[1756713306666,23.8,202.34,202.16,3.63244106]
[1756713307772,23.8,202.34,202.14,16.94]
[1756713307961,23.8,202.34,202.13,3.63244106]
[1756713308162,23.8,202.34,202.13,47.71244106]
[1756713308369,3.63244106,202.32,202.13,3.63244106]
[1756713308570,3.63244106,202.32,202.1,136.26328214]
[1756713308871,3.63244106,202.3,202.1,78.71598214]
[1756713309072,3.63244106,202.3,202.1,74.26328214]
[1756713309372,3.63244106,202.3,202.11,4.4523]
[1756713309667,3.63244106,202.3,202.11,3.98328214]
[1756713309871,3.63244106,202.3,202.13,4.452]
[1756713310171,86.72,202.31,202.13,3.63244106]
[1756713310373,86.72,202.31,202.13,7.6157232]
[1756713310763,104.86,202.32,202.14,4.4517]
[1756713311371,3.63244106,202.3,202.13,3.98328214]
[1756713311572,3.63244106,202.3,202.11,3.63244106]
[1756713311767,133.3,202.29,202.11,7.6157232]
[1756713312168,117.68,202.29,202.11,7.6157232]
[1756713312364,117.68,202.29,202.09,19.82]
[1756713312365,3.63244106,202.34,202.15,3.63244106]
[1756713312673,133.2,202.33,202.16,3.63244106]
[1756713313070,3.63244106,202.32,202.13,3.98328214]
[1756713313271,3.63244106,202.32,202.12,7.6157232]
[1756713313676,3.63244106,202.32,202.11,22.1757232]
[1756713313870,3.63244106,202.32,202.11,7.6157232]
[1756713314775,3.63244106,202.32,202.12,4.4521]
[1756713315672,3.63244106,202.32,202.14,4.4516]
[1756713315868,336.05244106,202.35,202.12,3.98328214]
[1756713316072,132.86,202.34,202.15,3.63244106]
[1756713316373,132.86,202.34,202.15,8.08384106]
[1756713316571,132.86,202.34,202.15,3.63244106]
[1756713316775,132.86,202.34,202.13,3.63244106]
[1756713317275,336.05244106,202.35,202.13,3.63244106]
[1756713317472,132.7,202.34,202.13,3.63244106]
[1756713317666,132.7,202.34,202.13,7.6157232]
[1756713318073,132.7,202.34,202.15,4.4514]
[1756713318573,132.7,202.34,202.16,4.2643164]
[1756713318776,132.7,202.34,202.17,4.2643164]
[1756713318975,132.7,202.34,202.18,4.2643164]
[1756713319170,132.7,202.34,202.19,4.2643164]
[1756713319375,132.7,202.34,202.2,4.2643164]
[1756713319573,132.7,202.34,202.21,4.2643164]
[1756713319875,132.7,202.34,202.22,4.2643164]
[1756713320172,3.63244106,202.31,202.23,4.2643164]
[1756713320377,3.63244106,202.31,202.24,4.2643164]
[1756713320577,3.63244106,202.31,202.13,3.63244106]
[1756713320578,3.63244106,202.31,202.25,4.2643164]
[1756713320778,3.63244106,202.31,202.26,4.2643164]
[1756713320979,3.63244106,202.31,202.27,4.2643164]
[1756713321179,3.63244106,202.31,202.28,4.2643164]
[1756713321480,3.63244106,202.31,202.11,3.63244106]
[1756713321779,132.24,202.3,202.11,3.63244106]
[1756713321980,3.63244106,202.32,202.11,7.6157232]
[1756713322179,132.26,202.31,202.14,4.4517]
[1756713322680,132.2,202.3,202.15,3.63244106]
[1756713323376,132.2,202.3,202.12,3.98328214]
[1756713323581,132.2,202.3,202.11,3.63244106]
[1756713323782,3.63244106,202.34,202.11,7.6157232]
[1756713324077,132.12,202.33,202.12,3.98328214]
[1756713324276,132.12,202.33,202.11,8.08474106]
[1756713324480,132.12,202.33,202.11,7.6157232]
[1756713324677,132.12,202.33,202.11,3.63244106]
[1756713324879,132.12,202.33,202.11,7.6157232]
[1756713325280,332.42,202.35,202.15,3.63244106]
[1756713325581,132.02,202.32,202.15,3.63244106]
[1756713326579,332.42,202.35,202.15,3.63244106]
[1756713326777,332.42,202.35,202.19,3.63244106]
[1756713326973,332.42,202.35,202.19,4.4506]
[1756713327180,332.42,202.35,202.19,3.63244106]
[1756713327375,332.42,202.35,202.17,3.98328214]
[1756713327580,332.42,202.35,202.21,4.4501]
[1756713328081,332.42,202.35,202.2,3.63244106]
[1756713328583,332.42,202.35,202.2,8.08274106]
[1756713328985,132.24,202.38,202.2,3.63244106]
[1756713331887,132.24,202.38,202.21,4.4502]
[1756713332087,132.24,202.38,202.2,3.63244106]
[1756713332477,132.24,202.38,202.2,18.59244106]
[1756713332681,132.24,202.38,202.2,3.63244106]
[1756713332882,132.24,202.38,202.2,22.77244106]
[1756713333286,3.63244106,202.41,202.2,22.77244106]
[1756713333287,37.56,202.39,202.2,22.77244106]
[1756713333486,37.56,202.39,202.2,3.63244106]
[1756713333681,37.56,202.39,202.2,8.08294106]
[1756713333876,3.63244106,202.41,202.2,3.63244106]
[1756713334082,3.63244106,202.44,202.25,3.63244106]
[1756713334284,131.76,202.46,202.29,3.63244106]
[1756713335283,131.76,202.46,202.27,3.63244106]
[1756713335990,131.66,202.45,202.27,3.63244106]
[1756713336584,131.66,202.45,202.29,4.4483]
[1756713337186,131.66,202.45,202.25,3.63244106]
[1756713337386,3.63244106,202.44,202.25,3.63244106]
[1756713337891,131.66,202.45,202.25,3.63244106]
[1756713338293,131.66,202.45,202.25,8.08184106]
[1756713338491,131.66,202.45,202.25,3.63244106]
[1756713339391,3.63244106,202.46,202.28,4.4486]
[1756713339690,332.36,202.47,202.29,3.63244106]
[1756713340190,332.36,202.47,202.33,3.63244106]
[1756713340791,332.36,202.47,202.34,4.4473]
[1756713342893,332.36,202.47,202.33,3.63244106]
[1756713343387,332.36,202.47,202.34,4.4473]
[1756713343989,332.36,202.47,202.33,3.63244106]
[1756713345590,332.36,202.47,202.34,4.4473]
[1756713345783,463.12,202.47,202.34,4.4473]
[1756713346384,332.36,202.47,202.35,4.4471]
[1756713347600,332.36,202.47,202.37,3.63244106]
[1756713347896,130.6,202.52,202.37,3.63244106]
[1756713348098,130.58,202.51,202.37,3.63244106]
[1756713348292,130.58,202.51,202.37,8.07914106]
[1756713348593,3.63244106,202.58,202.37,3.63244106]
[1756713348790,7.98,202.57,202.4,4.4461]
[1756713348986,3.63244106,202.58,202.37,3.63244106]
[1756713349190,130.48,202.57,202.37,3.63244106]
[1756713350098,3.63244106,202.58,202.37,3.63244106]
[1756713350395,130.42,202.57,202.37,3.63244106]
[1756713351289,130.4,202.56,202.39,4.4462]
[1756713351488,3.63244106,202.58,202.39,4.4462]
[1756713351694,130.4,202.57,202.37,3.63244106]
[1756713351895,332.14,202.62,202.41,3.63244106]
[1756713352092,130.4,202.61,202.41,3.63244106]
[1756713352397,130.4,202.61,202.43,4.4454]
[1756713352599,130.4,202.6,202.41,3.63244106]
[1756713352897,130.4,202.6,202.44,4.4452]
[1756713353294,130.4,202.6,202.41,3.63244106]
[1756713353898,130.4,202.6,202.44,4.4452]
[1756713354193,134.03244106,202.6,202.41,3.63244106]
[1756713354394,134.03244106,202.6,202.38,3.63244106]
[1756713354589,134.03244106,202.6,202.39,4.4462]
[1756713354790,134.03244106,202.6,202.38,3.63244106]
[1756713355095,134.03244106,202.6,202.4,4.446]
[1756713355297,332.14,202.62,202.42,3.63244106]
[1756713355298,130.38,202.59,202.42,3.63244106]
[1756713355591,134.01244106,202.59,202.38,3.63244106]
[1756713356000,3.63244106,202.59,202.38,3.63244106]
[1756713356292,130.38,202.58,202.38,3.63244106]
[1756713356487,130.38,202.58,202.31,332.1]
[1756713356696,3.63244106,202.55,202.34,3.63244106]
[1756713356893,3.63244106,202.55,202.35,4.4472]
[1756713357089,130.38,202.58,202.35,4.4472]
[1756713357296,3.63244106,202.56,202.34,3.63244106]
[1756713357493,47.6,202.55,202.38,3.63244106]
[1756713357900,3.63244106,202.58,202.38,3.63244106]
[1756713358101,130.38,202.57,202.41,4.4459]
[1756713358590,130.38,202.57,202.38,8.07884106]
[1756713358794,3.63244106,202.54,202.35,3.63244106]
[1756713360496,3.63244106,202.57,202.35,3.63244106]
[1756713360700,130.36,202.56,202.39,4.4463]
[1756713360896,3.63244106,202.57,202.35,3.63244106]
[1756713361097,130.36,202.55,202.37,3.63244106]
[1756713361595,130.36,202.55,202.35,4.4472]
[1756713361596,3.63244106,202.53,202.31,335.73244106]
[1756713362505,76.3,202.52,202.35,3.63244106]
[1756713362696,49.78,202.51,202.37,4.4467]
[1756713362901,3.63244106,202.56,202.35,3.63244106]
[1756713363198,130.36,202.55,202.35,3.63244106]
[1756713363800,3.63244106,202.56,202.36,4.4469]
[1756713363999,130.36,202.55,202.36,4.4469]
[1756713364604,130.36,202.55,202.35,3.63244106]
[1756713364605,3.63244106,202.56,202.37,4.4467]
[1756713365001,130.36,202.55,202.37,4.4467]
[1756713365403,100.5,202.54,202.37,4.4467]
[1756713365709,111.0,202.53,202.37,4.4467]
[1756713366295,3.63244106,202.56,202.37,4.4467]
[1756713366500,130.34,202.55,202.37,4.4467]
[1756713366702,3.63244106,202.56,202.37,4.4467]
[1756713366903,130.34,202.55,202.37,4.4467]
[1756713367105,100.46,202.54,202.37,4.4467]
[1756713367596,3.63244106,202.56,202.37,4.4467]
[1756713367796,130.34,202.55,202.37,4.4467]
[1756713367996,100.44,202.54,202.38,4.4465]
[1756713368600,130.34,202.53,202.39,4.4463]
[1756713369308,130.34,202.53,202.33,130.36]
[1756713369309,130.34,202.53,202.37,4.4467]
[1756713369700,130.34,202.53,202.34,3.63244106]
[1756713370804,130.34,202.53,202.36,4.447]
[1756713371000,332.14,202.62,202.34,3.63244106]
[1756713371321,3.63244106,202.57,202.36,4.447]
[1756713371608,3.63244106,202.53,202.36,4.447]
[1756713371805,19.4,202.52,202.36,4.447]
[1756713372112,19.4,202.52,202.31,335.73244106]
[1756713372312,19.4,202.52,202.31,445.44]
[1756713372504,19.4,202.52,202.32,4.4478]
[1756713373403,3.63244106,202.49,202.31,332.1]
[1756713373904,4.6,202.48,202.31,332.1]
[1756713374102,3.63244106,202.45,202.28,113.83466273]
[1756713374504,3.63244106,202.5,202.3,3.63244106]
[1756713374704,3.7,202.49,202.3,3.63244106]
[1756713375100,14.86,202.57,202.28,109.38596273]
[1756713375101,3.63244106,202.46,202.28,4.4487]
[1756713375304,3.63244106,202.46,202.25,3.63244106]
[1756713376013,3.63244106,202.46,202.29,4.4484]
[1756713376215,3.63244106,202.42,202.25,3.63244106]
[1756713376405,3.63244106,202.38,202.21,3.96274578]
[1756713376611,2.32,202.37,202.19,335.96274578]
[1756713376816,2.32,202.37,202.19,332.0]
[1756713377710,2.32,202.37,202.19,4.4508]
[1756713377910,2.32,202.37,202.17,65.96]
[1756713377911,3.63244106,202.3,202.1,3.96274578]
[1756713378106,3.63244106,202.3,202.09,3.63244106]
[1756713378412,130.32,202.29,202.11,4.4526]
[1756713378711,130.32,202.29,202.12,4.25157988]
[1756713378916,130.32,202.29,202.08,4.453]
[1756713378917,3.63244106,202.26,202.13,4.25157988]
[1756713379213,3.63244106,202.26,202.14,4.25157988]
[1756713379417,3.63244106,202.26,202.15,4.25223236]
[1756713379714,3.63244106,202.26,202.16,4.25223236]
[1756713379909,3.63244106,202.26,202.17,4.25223236]
[1756713380111,3.63244106,202.26,202.18,4.2459992]
[1756713380307,3.63244106,202.26,202.19,4.2459992]
[1756713380607,130.34,202.25,202.07,14.98]
[1756713380813,44.5,202.24,202.08,4.24156353]
[1756713381016,3.63244106,202.26,202.09,4.24156353]
[1756713381208,3.63244106,202.26,202.1,4.24156353]
[1756713381515,3.63244106,202.26,202.11,4.24156353]
[1756713381814,66.22,202.25,202.12,4.24156353]
[1756713382006,69.85244106,202.24,202.13,4.24156353]
[1756713382204,3.63244106,202.24,202.14,4.24156353]
[1756713382408,3.63244106,202.24,202.15,4.24156353]
[1756713382613,66.42,202.23,202.16,4.24156353]
[1756713382816,66.42,202.23,202.17,4.24156353]
[1756713383115,130.36,202.22,202.18,4.24156353]
[1756713383310,130.36,202.22,202.19,4.24156353]
[1756713383515,130.36,202.21,202.2,4.24156353]
[1756713384222,3.63244106,202.24,202.2,4.24156353]
[1756713384412,130.36,202.23,202.21,4.24156353]
[1756713384716,0.5,202.23,202.22,4.24156353]
[1756713384915,130.36,202.23,202.07,19.4334]
[1756713385112,346.9,202.33,202.07,19.4334]
[1756713385313,3.63244106,202.24,202.07,19.4334]
[1756713385618,18.02,202.27,202.09,3.63244106]
[1756713385809,3.63244106,202.28,202.09,3.63244106]
[1756713386012,130.38,202.29,202.15,4.4517]
[1756713386320,130.38,202.29,202.13,3.63244106]
[1756713387418,130.38,202.29,202.1,3.63244106]
[1756713387714,134.01244106,202.28,202.09,4.4528]
[1756713387921,130.38,202.27,202.09,4.4528]
[1756713388616,3.63244106,202.28,202.09,4.4528]
[1756713388814,3.63244106,202.28,202.11,4.4526]
[1756713389120,332.28,202.36,202.12,3.63244106]
[1756713389420,3.63244106,202.34,202.12,3.63244106]
[1756713389619,3.63244106,202.34,202.16,3.63244106]
[1756713389916,134.01244106,202.35,202.16,3.63244106]
[1756713390517,3.63244106,202.35,202.16,8.08374106]
[1756713390714,130.38,202.34,202.16,8.08374106]
[1756713391116,3.63244106,202.35,202.18,4.451]
[1756713391419,98.98,202.34,202.18,4.451]
[1756713391620,98.98,202.34,202.16,3.63244106]
[1756713392217,98.98,202.34,202.14,3.63244106]
[1756713392420,98.98,202.34,202.11,12.22]
[1756713392421,3.63244106,202.31,202.11,12.22]
[1756713393418,3.63244106,202.31,202.13,3.63244106]
[1756713393612,3.63244106,202.31,202.09,130.36]
[1756713394617,3.63244106,202.31,202.08,466.31244106]
[1756713395015,130.36,202.3,202.08,466.31244106]
[1756713395419,14.86,202.35,202.08,466.31244106]
[1756713395720,3.63244106,202.3,202.08,466.31244106]
[1756713396416,102.02,202.29,202.14,4.4519]
[1756713396615,102.02,202.29,202.11,3.63244106]
[1756713397421,102.02,202.29,202.1,4.4526]
[1756713397621,3.63244106,202.26,202.08,419.54]
[1756713398314,3.63244106,202.26,202.09,4.4529]
[1756713398720,3.63244106,202.26,202.08,419.54]
[1756713398923,3.63244106,202.26,202.08,332.32]
[1756713400424,3.63244106,202.26,202.05,4.4538]
[1756713400723,3.63244106,202.22,202.03,119.06]
[1756713400927,68.46,202.21,202.02,4.4546]
[1756713401424,68.46,202.21,202.0,134.815]
[1756713401724,68.46,202.21,202.0,130.36]
[1756713401923,3.63244106,202.18,201.96,336.01244106]
[1756713402125,3.63244106,202.18,201.99,4.4552]
[1756713402321,3.63244106,202.18,201.97,130.36]
[1756713402322,130.34,202.17,201.98,3.63244106]
[1756713402524,130.34,202.17,202.03,4.4542]
[1756713402728,130.34,202.17,201.99,3.63244106]
[1756713403028,130.34,202.17,201.98,4.4553]
[1756713403224,3.63244106,202.15,201.96,332.38]
[1756713403619,130.36,202.14,201.96,332.38]
[1756713403819,3.63244106,202.15,201.96,332.38]
[1756713404026,43.24,202.14,201.96,332.38]
[1756713405020,43.24,202.14,201.97,4.4555]
[1756713405225,43.24,202.14,201.96,332.38]
[1756713405426,21.56,202.14,201.96,332.38]
[1756713405631,3.63244106,202.15,201.98,3.63244106]
[1756713405825,19.81244106,202.15,202.0,4.4548]
[1756713406227,19.81244106,202.15,201.98,3.63244106]
[1756713407529,19.81244106,202.15,201.98,8.08784106]
[1756713407829,19.81244106,202.15,201.96,332.38]
[1756713408028,130.36,202.14,201.96,332.38]
[1756713408229,43.2,202.14,201.96,332.38]
[1756713408637,43.2,202.14,201.97,4.19164261]
[1756713408847,43.2,202.14,201.98,4.19164261]
[1756713409033,43.2,202.14,201.99,4.19164261]
[1756713409235,43.2,202.14,202.0,4.19164261]
[1756713409435,106.24,202.14,202.01,4.19164261]
[1756713409636,106.24,202.14,202.02,4.19164261]
[1756713409935,106.24,202.14,202.03,4.19164261]
[1756713410135,3.63244106,202.11,202.04,4.19164261]
[1756713410331,3.63244106,202.11,202.05,4.19164261]
[1756713410631,3.63244106,202.11,202.06,4.19164261]
[1756713410836,3.63244106,202.11,202.07,4.19164261]
[1756713411137,3.63244106,202.11,202.08,4.19164261]
[1756713411337,3.63244106,202.11,201.84,336.48274578]
[1756713411338,130.36,202.1,201.9,7.61244106]
[1756713411730,130.36,202.1,201.91,4.194414]
[1756713411931,130.36,202.1,201.93,4.4564]
[1756713412130,130.36,202.1,201.94,4.194414]
[1756713412331,130.36,202.1,201.95,4.194414]
[1756713412536,130.36,202.1,201.96,4.194414]
[1756713412740,130.36,202.1,201.97,4.194414]
[1756713412926,130.36,202.1,201.98,4.194414]
[1756713413133,130.36,202.1,201.99,4.194414]
[1756713413331,130.36,202.1,202.0,4.194414]
[1756713413536,130.36,202.1,202.01,4.194414]
[1756713413834,130.36,202.1,202.02,4.194414]
[1756713414038,130.36,202.1,201.9,7.61244106]
[1756713414039,130.36,202.1,202.03,4.194414]
[1756713414232,130.36,202.1,201.85,62.0]
[1756713414233,130.36,202.1,202.04,4.194414]
[1756713414534,130.36,202.1,202.05,4.194414]
[1756713414835,130.36,202.1,201.88,8.85244106]
[1756713414836,130.36,202.1,202.06,4.194414]
[1756713415137,130.36,202.1,202.07,4.194414]
[1756713415335,3.63244106,202.11,202.08,4.194414]
[1756713415536,68.44,202.1,201.94,4.4562]
[1756713416539,3.63244106,202.11,201.94,4.4562]
[1756713416732,65.92,202.1,201.92,3.63244106]
[1756713417438,16.92,202.11,201.88,5.22]
[1756713417634,16.92,202.11,201.92,3.63244106]
[1756713418136,16.92,202.11,201.94,4.4562]
[1756713418532,16.92,202.11,201.92,3.63244106]
[1756713419131,16.92,202.11,201.93,4.4564]
[1756713419436,16.92,202.11,201.92,3.63244106]
[1756713420142,16.92,202.11,201.96,4.4557]
[1756713420436,16.92,202.11,201.9,9.35244106]
[1756713420637,16.92,202.11,201.9,3.63244106]
[1756713421134,3.63244106,202.14,201.97,4.4555]
[1756713421332,11.66,202.13,201.97,4.4555]